fUSD/lending_fUSD_20240125
["ID","MTS","AMOUNT","RATE_DAILY","PERIOD"]
[312760191,1706200245922,-267.28627626,0.00048643,30]
[312760192,1706200245932,-150.0,0.00048651,7]
[312760193,1706200245941,-150.0,0.00048653,7]
[312760194,1706200245951,-611.55518383,0.00048653,30]
[312760195,1706200245960,-150.0,0.00048672,7]
[312760196,1706200245969,-267.28627626,0.00048678,30]
[312760198,1706200245978,-1441.964,0.00048682,120]
[312760199,1706200245988,-8477.1,0.000487,7]
[312760200,1706200245997,-153.8935686,0.00048707,30]
[312760201,1706200246006,-150.0,0.00048734,7]
[312760202,1706200246015,-150.0,0.00048755,7]
[312760203,1706200246024,-150.0,0.0004877,7]
[312760204,1706200246034,-171.00776205,0.00048786,30]
[312760205,1706200246045,-9163.71,0.000488,7]
[312760206,1706200246054,-153.01763265,0.00048806,30]
[312760207,1706200246063,-602.78287986,0.0004886,30]
[312760208,1706200246072,-150.0,0.00048872,7]
[312760209,1706200246082,-402.10954005,0.00048888,30]
[312760210,1706200246091,-150.0,0.00048891,7]
[312760211,1706200246100,-156.58159513,0.00048896,30]
[312760212,1706200246109,-153.94916634,0.00048918,30]
[312760213,1706200246121,-150.0,0.00048929,7]
[312760214,1706200246130,-153.48533887,0.00048959,30]
[312760215,1706200246139,-150.0,0.0004897,7]
[312760216,1706200246148,-150.0,0.00048973,7]
[312760217,1706200246158,-1947.0,0.00049,14]
[312760218,1706200246167,-2000.0,0.00049,7]
[312760219,1706200246177,-155.03,0.00049,6]
[312760220,1706200246187,-155.03,0.00049,6]
[312760221,1706200246197,-155.03,0.00049,6]
[312760222,1706200246206,-155.03,0.00049,6]
[312760223,1706200246215,-4021.5676004,0.00049,2]
[312760224,1706200246226,-150.0,0.00049005,7]
[312760225,1706200246236,-153.50449044,0.00049015,30]
[312760226,1706200246245,-150.0,0.0004902,7]
[312760227,1706200246254,-267.28627626,0.00049035,30]
[312760228,1706200246263,-1607.47,0.00049041,2]
[312760229,1706200246273,-2306.2,0.00049041,2]
[312760230,1706200246281,-150.0,0.00049076,7]
[312760231,1706200246290,-153.8935686,0.00049079,30]
[312760232,1706200246300,-412.7,0.00049109,2]
[312760233,1706200246309,-150.0,0.00049112,7]
[312760234,1706200246318,-150.0,0.00049164,7]
[312760235,1706200246327,-162.78049167,0.0004917,30]
[312760236,1706200246337,-602.78287986,0.00049199,30]
[312760237,1706200246348,-1500.0,0.00049228,7]
[312760238,1706200246358,-267.28627626,0.00049229,30]
[312760239,1706200246368,-150.0,0.0004923,7]
[312760240,1706200246377,-150.0,0.00049243,7]
[312760241,1706200246387,-150.0,0.00049255,7]
[312760242,1706200246396,-150.0,0.00049263,7]
[312760243,1706200246407,-150.0,0.0004927,7]
[312760244,1706200246417,-150.0,0.00049271,7]
[312760245,1706200246426,-150.0,0.00049286,7]
[312760246,1706200246435,-150.0,0.00049294,7]
[312760247,1706200246445,-1178.42,0.00049315,2]
[312760248,1706200246454,-150.0,0.00049367,7]
[312760249,1706200246463,-300.0,0.00049371,7]
[312760250,1706200246472,-161.51298073,0.00049401,30]
[312760251,1706200246481,-267.28627626,0.00049406,30]
[312760252,1706200246491,-150.0,0.00049414,7]
[312760253,1706200246500,-156.58159513,0.00049438,30]
[312760254,1706200246510,-153.50449044,0.00049446,30]
[312760255,1706200246519,-1500.0,0.00049453,7]
[312760256,1706200246529,-150.0,0.00049466,7]
[312760257,1706200246538,-300.0,0.00049479,7]
[312760258,1706200246547,-3391.12064649,0.00049487,4]
[312760259,1706200246556,-150.0,0.00049495,7]
[312760260,1706200246566,-203.0,0.00049499,25]
[312760261,1706200246575,-169.67902905,0.000495,30]
[312760262,1706200246585,-267.28627626,0.00049504,30]
[312760263,1706200246594,-150.0,0.00049522,7]
[312760264,1706200246603,-300.0,0.00049526,7]
[312760265,1706200246612,-1500.0,0.00049542,7]
[312760266,1706200246621,-150.0,0.00049545,7]
[312760267,1706200246630,-1500.0,0.00049551,7]
[312760268,1706200246640,-150.0,0.00049559,7]
[312760270,1706200246649,-150.0,0.00049565,7]
[312760272,1706200246658,-150.0,0.00049586,7]
[312760274,1706200246667,-1500.0,0.00049589,7]
[312760276,1706200246677,-150.0,0.00049604,7]
[312760278,1706200246686,-150.0,0.00049605,7]
[312760280,1706200246695,-156.58159513,0.00049607,30]
[312760282,1706200246704,-300.0,0.00049661,7]
[312760283,1706200246713,-402.10954005,0.00049668,30]
[312760285,1706200246722,-150.0,0.00049669,7]
[312760286,1706200246731,-150.0,0.00049677,7]
[312760287,1706200246740,-150.0,0.00049679,7]
[312760288,1706200246749,-150.0,0.00049684,7]
[312760289,1706200246758,-156.82505761,0.00049693,30]
[312760290,1706200246767,-2704.87130043,0.000497,120]
[312760291,1706200246776,-150.0,0.00049706,7]
[312760292,1706200246785,-150.0,0.00049706,7]
[312760293,1706200246794,-150.0,0.00049727,7]
[312760294,1706200246804,-153.48533887,0.00049734,30]
[312760295,1706200246812,-150.0,0.00049736,7]
[312760296,1706200246822,-530.98310274,0.00049739,5]
[312760297,1706200246831,-150.0,0.00049746,7]
[312760298,1706200246839,-150.0,0.00049752,7]
[312760299,1706200246849,-150.0,0.00049756,7]
[312760300,1706200246858,-150.0,0.00049763,7]
[312760301,1706200246866,-150.0,0.00049797,7]
[312760302,1706200246876,-150.0,0.00049808,7]
[312760303,1706200246885,-150.0,0.00049813,7]
[312760304,1706200246895,-150.0,0.00049813,7]
[312760305,1706200246904,-480.0670203,0.00049813,120]
[312760306,1706200246914,-150.0,0.0004982,7]
[312760307,1706200246923,-150.0,0.00049821,7]
[312760308,1706200246933,-150.0,0.00049828,7]
[312760309,1706200246942,-150.0,0.00049836,7]
[312760310,1706200246951,-150.0,0.00049841,7]
[312760311,1706200246961,-151.000001,0.00049846,30]
[312760312,1706200246969,-150.0,0.00049855,7]
[312760313,1706200246979,-150.0,0.00049865,7]
[312760314,1706200246988,-150.0,0.00049866,7]
[312760315,1706200246998,-150.0,0.00049871,7]
[312760316,1706200247007,-150.0,0.00049875,7]
[312760317,1706200247016,-150.0,0.00049877,7]
[312760318,1706200247025,-157.90537547,0.0004988,30]
[312760319,1706200247035,-150.0,0.0004988,7]
[312760320,1706200247047,-150.0,0.00049888,7]
[312760321,1706200247056,-150.0,0.0004989,7]
[312760322,1706200247065,-150.0,0.00049893,7]
[312760323,1706200247074,-1053.84916775,0.00049899,7]
[312760324,1706200247083,-251.91269786,0.000499,120]
[312760325,1706200247092,-195.10400093,0.000499,38]
[312760326,1706200247101,-150.0,0.00049903,7]
[312760327,1706200247110,-602.78287986,0.00049907,30]
[312760328,1706200247121,-150.0,0.00049915,7]
[312760329,1706200247130,-150.0,0.00049915,7]
[312760330,1706200247139,-150.0,0.00049915,7]
[312760331,1706200247148,-150.0,0.0004992,7]
[312760332,1706200247157,-150.0,0.00049933,7]
[312760333,1706200247167,-150.0,0.00049937,7]
[312760334,1706200247176,-150.0,0.00049938,7]
[312760335,1706200247187,-150.0,0.00049941,7]
[312760336,1706200247197,-150.0,0.00049943,7]
[312760337,1706200247207,-150.0,0.00049951,7]
[312760338,1706200247216,-150.0,0.00049952,7]
[312760339,1706200247227,-150.0,0.00049955,7]
[312760340,1706200247236,-158.16330397,0.00049956,30]
[312760341,1706200247245,-150.0,0.00049964,7]
[312760342,1706200247254,-150.0,0.00049969,7]
[312760343,1706200247263,-150.0,0.00049981,7]
[312760344,1706200247272,-150.0,0.00049983,7]
[312760345,1706200247281,-150.0,0.00049986,7]
[312760346,1706200247292,-200.0,0.0004999,2]
[312760347,1706200247303,-1205.9494329,0.0004999,4]
[312760348,1706200247313,-1383.5913054,0.0004999,35]
[312760349,1706200247323,-500.0,0.0004999,7]
[312760350,1706200247332,-718.87885058,0.0004999,120]
[312760351,1706200247342,-5839.85633545,0.0004999,4]
[312760352,1706200247352,-1472.65130728,0.0004999,3]
[312760353,1706200247361,-160.00184019,0.0004999,2]
[312760354,1706200247370,-11725.0,0.0004999,120]
[312760355,1706200247379,-436.35499981,0.0004999,120]
[312760356,1706200247391,-159.0,0.0004999,2]
[312760357,1706200247401,-3679.30863627,0.00049999,4]
[312760358,1706200247411,-50000.0,0.0005,30]
[312760359,1706200247422,-8361.69852116,0.0005,20]
[312760360,1706200247432,-2800.86461245,0.0005,10]
[312760361,1706200247442,-236.1153163,0.0005,30]
[312760362,1706200247451,-26892.80733379,0.0005,4]
[312760363,1706200247460,-7854.81481948,0.0005,4]
[312760364,1706200247469,-2955.08734488,0.0005,4]
[312760365,1706200247478,-155.36916832,0.0005,30]
[312760366,1706200247487,-2000.0,0.0005,14]
[312760367,1706200247496,-693244.50853742,0.0005,120]
[312760368,1706200247505,-31762.49800343,0.0005,2]
[312760369,1706200247516,-156.11870076,0.0005,120]
[312760370,1706200247525,-1025.68384959,0.0005,120]
[312760371,1706200247534,-1195.91952759,0.0005,60]
[312760372,1706200247544,-10196.71734607,0.0005,5]
[312760373,1706200247553,-10527.46309242,0.0005,30]
[312760374,1706200247563,-1064.53784352,0.0005,30]
[312760375,1706200247573,-5073.79617212,0.0005,30]
[312760376,1706200247582,-389.068,0.0005,30]
[312760377,1706200247592,-7023.17199395,0.0005,60]
[312760378,1706200247601,-55061.04356305,0.0005,4]
[312760379,1706200247610,-40049.0,0.0005,10]
[312760380,1706200247619,-2000.0,0.0005,7]
[312760381,1706200247628,-269.78694006,0.0005,7]
[312760382,1706200247637,-8791.0,0.0005,7]
[312760383,1706200247646,-154.67858105,0.00050056,60]
[312760384,1706200247655,-153.01763265,0.00050135,60]
[312760385,1706200247664,-153.48533887,0.0005019,60]
[312760386,1706200247674,-369.59464494,0.000502,120]
[312760387,1706200247683,-280.66881225,0.000502,30]
[312760388,1706200247693,-154.67858105,0.00050211,60]
[312760389,1706200247702,-169.03388973,0.00050259,60]
[312760390,1706200247711,-402.10954005,0.00050398,60]
[312760391,1706200247721,-154.88413823,0.00050405,60]
[312760392,1706200247731,-153.01763265,0.00050457,60]
[312760393,1706200247740,-203.0,0.00050549,29]
[312760394,1706200247749,-611.55518383,0.00050664,60]
[312760395,1706200247759,-153.02531531,0.00050713,60]
[312760396,1706200247768,-611.55518383,0.00050723,60]
[312760397,1706200247778,-161.51298073,0.00050733,60]
[312760398,1706200247788,-611.55518383,0.00050774,60]
[312760399,1706200247798,-37228.65026933,0.000508,120]
[312760400,1706200247808,-263.13,0.000508,60]
[312760401,1706200247817,-500.0,0.00050817,30]
[312760402,1706200247827,-500.0,0.00050817,30]
[312760403,1706200247837,-500.0,0.00050817,30]
[312760404,1706200247846,-500.0,0.00050817,30]
[312760405,1706200247993,-500.0,0.00050817,30]
[312760406,1706200248002,-500.0,0.00050817,30]
[312760407,1706200248011,-500.0,0.00050817,30]
[312760408,1706200248024,-500.0,0.00050817,30]
[312760409,1706200248035,-246.0,0.00050817,30]
[312760410,1706200248046,-602.78287986,0.00050826,60]
[312760411,1706200248055,-154.88413823,0.00050855,60]
[312760412,1706200248064,-267.28627626,0.00050915,60]
[312760413,1706200248074,-885.0,0.00050973,30]
[312760414,1706200248084,-378.0,0.00050973,30]
[312760415,1706200248093,-310.0,0.00050973,30]
[312760416,1706200248103,-50000.0,0.00051,31]
[312760417,1706200248113,-2000.0,0.00051,14]
[312760418,1706200248123,-3595.65598412,0.00051,120]
[312760419,1706200248132,-579.28980135,0.00051,60]
[312760420,1706200248142,-2000.0,0.00051,7]
[312760421,1706200248151,-153.0916106,0.00051,15]
[312760422,1706200248160,-153.0916106,0.00051,16]
[312760423,1706200248170,-153.0916106,0.00051,16]
[312760424,1706200248180,-153.0916106,0.00051,14]
[312760425,1706200248189,-153.0916106,0.00051,16]
[312760426,1706200248198,-153.0916106,0.00051,15]
[312760427,1706200248208,-153.0916106,0.00051,16]
[312760428,1706200248218,-153.0916106,0.00051,16]
[312760429,1706200248227,-153.0916106,0.00051,17]
[312760430,1706200248236,-153.0916106,0.00051,16]
[312760431,1706200248246,-153.0916106,0.00051,17]
[312760432,1706200248255,-153.0916106,0.00051,16]
[312760433,1706200248264,-153.0916106,0.00051,17]
[312760434,1706200248273,-153.0916106,0.00051,18]
[312760435,1706200248282,-153.0916106,0.00051,14]
[312760436,1706200248291,-153.0916106,0.00051,16]
[312760437,1706200248301,-153.0916106,0.00051,16]
[312760438,1706200248310,-153.0916106,0.00051,17]
[312760439,1706200248319,-153.0916106,0.00051,15]
[312760440,1706200248329,-153.0916106,0.00051,16]
[312760441,1706200248338,-153.0916106,0.00051,14]
[312760442,1706200248347,-153.0916106,0.00051,17]
[312760443,1706200248357,-153.0916106,0.00051,17]
[312760444,1706200248366,-153.0916106,0.00051,14]
[312760445,1706200248376,-153.0916106,0.00051,17]
[312760446,1706200248385,-153.0916106,0.00051,15]
[312760447,1706200248394,-153.0916106,0.00051,15]
[312760448,1706200248404,-153.0916106,0.00051,17]
[312760449,1706200248413,-153.0916106,0.00051,14]
[312760450,1706200248422,-153.0916106,0.00051,16]
[312760451,1706200248432,-153.0916106,0.00051,15]
[312760452,1706200248441,-153.0916106,0.00051,17]
[312760453,1706200248450,-153.0916106,0.00051,18]
[312760454,1706200248459,-153.0916106,0.00051,16]
[312760455,1706200248468,-153.50449044,0.00051068,60]
[312760456,1706200248478,-150.01,0.00051142,2]
[312760457,1706200248488,-153.48533887,0.00051164,60]
[312760458,1706200248498,-161.51298073,0.00051222,60]
[312760459,1706200248507,-153.85696089,0.00051266,49]
[312760460,1706200248516,-153.02531531,0.00051287,60]
[312760461,1706200248526,-158.16330397,0.00051294,60]
[312760462,1706200248535,-530.98310274,0.00051318,14]
[312760463,1706200248545,-267.28627626,0.00051366,60]
[312760464,1706200248555,-12498.94091457,0.00051371,3]
[312760465,1706200248564,-412.7,0.00051373,2]
[312760466,1706200248573,-611.55518383,0.00051408,60]
[312760467,1706200248583,-31652.0,0.0005141,30]
[312760468,1706200248592,-402.10954005,0.00051423,60]
[312760469,1706200248601,-885.0,0.00051499,30]
[312760470,1706200248611,-378.0,0.00051499,30]
[312760471,1706200248620,-310.0,0.00051499,30]
[312760472,1706200248629,-153.94916634,0.00051529,60]
[312760473,1706200248638,-466.38249314,0.00051535,120]
[312760474,1706200248647,-202.5,0.00051557,120]
[312760475,1706200248657,-203.0,0.00051599,32]
[312760476,1706200248667,-154.88413823,0.00051605,60]
[312760477,1706200248677,-168.52071163,0.00051661,60]
[312760478,1706200248687,-174.09273221,0.00051668,60]
[312760479,1706200248697,-611.55518383,0.00051691,60]
[312760480,1706200248706,-500.0,0.00051727,5]
[312760481,1706200248716,-500.0,0.00051736,5]
[312760482,1706200248726,-500.0,0.00051745,5]
[312760483,1706200248735,-500.0,0.00051754,5]
[312760484,1706200248746,-500.0,0.00051762,5]
[312760485,1706200248757,-611.55518383,0.0005177,60]
[312760486,1706200248767,-500.0,0.00051771,5]
[312760487,1706200248776,-500.0,0.0005178,5]
[312760488,1706200248786,-267.28627626,0.00051782,60]
[312760489,1706200248795,-158.16330397,0.000518,60]
[312760490,1706200248806,-151.0,0.00051824,2]
[312760491,1706200248815,-153.01763265,0.00051874,60]
[312760492,1706200248826,-167.2965874,0.000519,120]
[312760493,1706200248838,-31652.0,0.0005194,30]
[312760494,1706200248849,-163.53634403,0.00051963,60]
[312760495,1706200248858,-387.0,0.0005199,2]
[312760496,1706200248868,-356.0,0.0005199,2]
[312760497,1706200248880,-153.38651496,0.00051998,60]
[312760498,1706200248889,-50000.0,0.00052,32]
[312760499,1706200248899,-2089.10649731,0.00052,2]
[312760500,1706200248909,-151.14429462,0.00052,10]
[312760501,1706200248919,-2000.0,0.00052,14]
[312760502,1706200248930,-1000.0,0.00052,120]
[312760503,1706200248941,-1959.14361458,0.00052,120]
[312760504,1706200248951,-74709.0801594,0.00052,2]
[312760505,1706200248962,-211.20281589,0.00052,30]
[312760506,1706200248971,-5569.2347576,0.00052,120]
[312760507,1706200248983,-2125.73218894,0.00052,120]
[312760508,1706200248992,-200.0,0.00052,120]
[312760509,1706200249001,-200.0,0.00052,120]
[312760510,1706200249011,-9163.71,0.00052,7]
[312760511,1706200249021,-2000.0,0.00052,7]
[312760512,1706200249031,-1978.0,0.00052,7]
[312760513,1706200249043,-169.0,0.00052,120]
[312760514,1706200249052,-156.0,0.00052,120]
[312760515,1706200249062,-885.0,0.00052024,30]
[312760516,1706200249072,-378.0,0.00052024,30]
[312760517,1706200249083,-310.0,0.00052024,30]
[312760518,1706200249092,-611.55518383,0.00052025,60]
[312760519,1706200249101,-153.02531531,0.00052041,60]
[312760520,1706200249111,-150.0,0.00052054,120]
[312760521,1706200249122,-500.0,0.00052055,120]
[312760522,1706200249132,-151.25,0.00052055,120]
[312760523,1706200249143,-151.0,0.00052055,14]
[312760524,1706200249153,-155.172277,0.00052055,14]
[312760525,1706200249162,-151.0,0.00052055,14]
[312760526,1706200249171,-254.713257,0.00052055,14]
[312760527,1706200249181,-157.512581,0.00052055,14]
[312760528,1706200249190,-152.264726,0.00052055,14]
[312760529,1706200249199,-151.0,0.00052055,14]
[312760530,1706200249208,-151.0,0.00052055,14]
[312760531,1706200249217,-151.0,0.00052055,14]
[312760532,1706200249226,-828.845213,0.00052055,14]
[312760533,1706200249235,-828.845213,0.00052055,14]
[312760534,1706200249244,-828.845213,0.00052055,14]
[312760535,1706200249253,-828.845213,0.00052055,14]
[312760536,1706200249262,-828.845213,0.00052055,14]
[312760537,1706200249271,-828.845213,0.00052055,14]
[312760538,1706200249280,-735.245599,0.00052055,14]
[312760539,1706200249289,-735.245599,0.00052055,14]
[312760540,1706200249298,-735.245599,0.00052055,14]
[312760541,1706200249308,-735.245599,0.00052055,14]
[312760542,1706200249317,-735.245599,0.00052055,14]
[312760543,1706200249326,-735.245599,0.00052055,14]
[312760544,1706200249335,-151.0,0.00052055,14]
[312760545,1706200249345,-151.0,0.00052055,14]
[312760546,1706200249354,-151.0,0.00052055,14]
[312760547,1706200249363,-151.0,0.00052055,14]
[312760548,1706200249371,-151.0,0.00052055,14]
[312760549,1706200249380,-151.0,0.00052055,14]
[312760550,1706200249389,-151.0,0.00052055,14]
[312760551,1706200249398,-151.0,0.00052055,14]
[312760552,1706200249407,-151.0,0.00052055,14]
[312760553,1706200249416,-151.0,0.00052055,14]
[312760554,1706200249426,-151.0,0.00052055,14]
[312760555,1706200249436,-151.0,0.00052055,14]
[312760556,1706200249445,-151.0,0.00052055,14]
[312760557,1706200249454,-151.0,0.00052055,14]
[312760558,1706200249463,-151.0,0.00052055,14]
[312760559,1706200249473,-151.0,0.00052055,14]
[312760560,1706200249484,-151.0,0.00052055,14]
[312760561,1706200249494,-158.296147,0.00052055,14]
[312760562,1706200249503,-151.0,0.00052055,14]
[312760563,1706200249512,-151.0,0.00052055,14]
[312760564,1706200249521,-151.0,0.00052055,14]
[312760565,1706200249530,-246.503312,0.00052055,14]
[312760566,1706200249539,-246.503312,0.00052055,14]
[312760567,1706200249548,-246.503312,0.00052055,14]
[312760568,1706200249557,-246.503312,0.00052055,14]
[312760569,1706200249566,-246.503312,0.00052055,14]
[312760570,1706200249575,-246.503312,0.00052055,14]
[312760571,1706200249584,-151.0,0.00052055,14]
[312760572,1706200249593,-151.0,0.00052055,14]
[312760573,1706200249602,-255.210081,0.00052055,14]
[312760574,1706200249611,-151.0,0.00052055,14]
[312760575,1706200249620,-151.0,0.00052055,14]
[312760576,1706200249628,-151.0,0.00052055,14]
[312760577,1706200249638,-151.0,0.00052055,14]
[312760578,1706200249647,-151.0,0.00052055,14]
[312760579,1706200249656,-151.0,0.00052055,14]
[312760580,1706200249665,-151.0,0.00052055,14]
[312760581,1706200249674,-151.0,0.00052055,14]
[312760582,1706200249683,-151.0,0.00052055,14]
[312760583,1706200249692,-151.0,0.00052055,14]
[312760584,1706200249701,-151.0,0.00052055,14]
[312760585,1706200249710,-151.0,0.00052055,14]
[312760586,1706200249719,-151.0,0.00052055,14]
[312760587,1706200249729,-151.0,0.00052055,14]
[312760588,1706200249737,-154.043534,0.00052055,14]
[312760589,1706200249746,-151.0,0.00052055,14]
[312760590,1706200249755,-151.0,0.00052055,14]
[312760591,1706200249765,-151.0,0.00052055,14]
[312760592,1706200249773,-151.0,0.00052055,14]
[312760593,1706200249782,-151.0,0.00052055,14]
[312760594,1706200249792,-151.0,0.00052055,14]
[312760595,1706200249800,-151.0,0.00052055,14]
[312760596,1706200249810,-151.0,0.00052055,14]
[312760597,1706200249819,-151.0,0.00052055,14]
[312760598,1706200249828,-151.0,0.00052055,14]
[312760599,1706200249839,-151.0,0.00052055,14]
[312760600,1706200249848,-151.0,0.00052055,14]
[312760601,1706200249858,-151.0,0.00052055,14]
[312760602,1706200249868,-151.0,0.00052055,14]
[312760603,1706200249877,-151.0,0.00052055,14]
[312760604,1706200249886,-151.0,0.00052055,14]
[312760605,1706200249895,-151.0,0.00052055,14]
[312760606,1706200249906,-151.0,0.00052055,14]
[312760607,1706200249915,-151.0,0.00052055,14]
[312760608,1706200249925,-151.0,0.00052055,14]
[312760609,1706200249934,-151.0,0.00052055,14]
[312760610,1706200249943,-151.0,0.00052055,14]
[312760611,1706200249952,-151.0,0.00052055,14]
[312760612,1706200249962,-151.0,0.00052055,14]
[312760613,1706200249972,-151.0,0.00052055,14]
[312760614,1706200249983,-250.521691,0.00052055,14]
[312760615,1706200249993,-166.413649,0.00052055,14]
[312760616,1706200250005,-166.413649,0.00052055,14]
[312760617,1706200250015,-166.413649,0.00052055,14]
[312760618,1706200250024,-166.413649,0.00052055,14]
[312760619,1706200250034,-166.413649,0.00052055,14]
[312760620,1706200250047,-166.413649,0.00052055,14]
[312760621,1706200250057,-151.0,0.00052055,14]
[312760622,1706200250067,-151.0,0.00052055,14]
[312760623,1706200250077,-151.0,0.00052055,14]
[312760624,1706200250087,-151.0,0.00052055,14]
[312760625,1706200250097,-151.0,0.00052055,14]
[312760626,1706200250107,-151.0,0.00052055,2]
[312760627,1706200250117,-151.0,0.00052055,2]
[312760628,1706200250126,-151.0,0.00052055,2]
[312760629,1706200250136,-852.393969,0.00052055,14]
[312760630,1706200250145,-852.393969,0.00052055,14]
[312760631,1706200250155,-852.393969,0.00052055,14]
[312760632,1706200250164,-852.393969,0.00052055,14]
[312760633,1706200250175,-852.393969,0.00052055,14]
[312760634,1706200250184,-852.393969,0.00052055,14]
[312760635,1706200250194,-151.0,0.00052055,14]
[312760636,1706200250203,-151.0,0.00052055,14]
[312760637,1706200250212,-151.0,0.00052055,14]
[312760638,1706200250223,-151.0,0.00052055,14]
[312760639,1706200250231,-151.0,0.00052055,14]
[312760640,1706200250241,-151.0,0.00052055,14]
[312760641,1706200250250,-151.0,0.00052055,14]
[312760642,1706200250259,-151.0,0.00052055,14]
[312760643,1706200250268,-151.0,0.00052055,14]
[312760644,1706200250278,-153.288166,0.00052055,14]
[312760645,1706200250287,-151.0,0.00052055,14]
[312760646,1706200250297,-155.241368,0.00052055,14]
[312760647,1706200250306,-1331.72359,0.00052055,14]
[312760648,1706200250316,-1331.72359,0.00052055,14]
[312760649,1706200250325,-1331.72359,0.00052055,14]
[312760650,1706200250335,-151.0,0.00052055,14]
[312760651,1706200250345,-151.0,0.00052055,14]
[312760652,1706200250354,-151.0,0.00052055,14]
[312760653,1706200250363,-1331.72359,0.00052055,14]
[312760654,1706200250374,-1331.72359,0.00052055,14]
[312760655,1706200250383,-1331.72359,0.00052055,14]
[312760656,1706200250393,-151.0,0.00052055,14]
[312760657,1706200250403,-151.0,0.00052055,14]
[312760658,1706200250412,-151.0,0.00052055,14]
[312760659,1706200250421,-164.130415,0.00052055,14]
[312760660,1706200250435,-151.0,0.00052055,7]
[312760661,1706200250446,-151.0,0.00052055,7]
[312760662,1706200250456,-151.0,0.00052055,7]
[312760663,1706200250466,-151.0,0.00052055,7]
[312760664,1706200250479,-151.0,0.00052055,7]
[312760665,1706200250489,-151.0,0.00052055,7]
[312760666,1706200250499,-151.0,0.00052055,14]
[312760667,1706200250510,-151.0,0.00052055,14]
[312760668,1706200250520,-151.0,0.00052055,14]
[312760669,1706200250529,-151.0,0.00052055,14]
[312760670,1706200250539,-151.0,0.00052055,14]
[312760671,1706200250551,-151.0,0.00052055,14]
[312760672,1706200250560,-151.0,0.00052055,14]
[312760673,1706200250570,-151.0,0.00052055,14]
[312760674,1706200250579,-151.0,0.00052055,14]
[312760675,1706200250589,-151.0,0.00052055,14]
[312760676,1706200250598,-151.0,0.00052055,14]
[312760677,1706200250608,-151.0,0.00052055,14]
[312760678,1706200250617,-151.0,0.00052055,14]
[312760679,1706200250627,-151.0,0.00052055,14]
[312760680,1706200250636,-151.0,0.00052055,14]
[312760681,1706200250646,-157.44498811,0.0005208,60]
[312760682,1706200250655,-267.28627626,0.00052091,60]
[312760683,1706200250665,-402.10954005,0.00052129,60]
[312760684,1706200250674,-402.10954005,0.00052132,60]
[312760685,1706200250687,-500.0,0.00052156,120]
[312760686,1706200250697,-153.94916634,0.00052169,60]
[312760687,1706200250836,-153.38651496,0.00052174,60]
[312760688,1706200250847,-153.01763265,0.00052195,60]
[312760689,1706200250856,-611.55518383,0.00052223,60]
[312760690,1706200250866,-153.48533887,0.00052229,60]
[312760691,1706200250875,-500.0,0.00052258,120]
[312760692,1706200250884,-402.10954005,0.00052268,60]
[312760693,1706200250894,-500.0,0.00052359,120]
[312760694,1706200250903,-602.78287986,0.00052444,60]
[312760695,1706200250914,-500.0,0.00052461,120]
[312760696,1706200250923,-31652.0,0.0005247,30]
[312760697,1706200250937,-205.59128175,0.00052499,120]
[312760698,1706200250946,-211.11663167,0.0005255,30]
[312760699,1706200250956,-885.0,0.0005255,30]